[Event "Titled Tuesday Blitz May 30 Late 2023"]
[White "StarkyNZ"]
[Black "Remolar Gallen, Jose"]
[BlackFideId "2215187"]
[WhiteElo "2309"]
[BlackElo "2223"]
[Result "1-0"]
[Round "07"]
[TimeControl "180+2"]
[Date "2023.05.31"]
[WhiteClock "0:00:39"]
[BlackClock "0:00:01"]

1. d4 {[%clk 0:03:00]}  Nf6 {[%clk 0:02:55]} 2. c4 {[%clk 0:03:00]}  g6 {[%clk 0:02:55]} 3. Nc3 {[%clk 0:03:00]}  Bg7 {[%clk 0:02:54]} 4. g3 {[%clk 0:03:01]}  d6 {[%clk 0:02:54]} 5. Bg2 {[%clk 0:03:01]}  O-O {[%clk 0:02:55]} 6. Nf3 {[%clk 0:03:02]}  Nc6 {[%clk 0:02:54]} 7. O-O {[%clk 0:03:02]}  a6 {[%clk 0:02:54]} 8. e4 {[%clk 0:03:01]}  Bg4 {[%clk 0:02:53]} 9. Be3 {[%clk 0:02:56]}  Qd7 {[%clk 0:02:46]} 10. Re1 {[%clk 0:02:54]}  Rab8 {[%clk 0:02:40]} 11. Qd2 {[%clk 0:02:48]}  b5 {[%clk 0:02:37]} 12. cxb5 {[%clk 0:02:35]}  axb5 {[%clk 0:02:37]} 13. a3 {[%clk 0:02:25]}  Na5 {[%clk 0:02:37]} 14. e5 {[%clk 0:02:15]}  Ne8 {[%clk 0:02:22]} 15. Qc2 {[%clk 0:01:58]}  Bf5 {[%clk 0:02:20]} 16. Qd1 {[%clk 0:01:55]}  Nc4 {[%clk 0:02:19]} 17. Bc1 {[%clk 0:01:50]}  dxe5 {[%clk 0:02:04]} 18. dxe5 {[%clk 0:01:44]}  Qxd1 {[%clk 0:02:05]} 19. Rxd1 {[%clk 0:01:42]}  Nxe5 {[%clk 0:02:04]} 20. Bf4 {[%clk 0:01:42]}  Nxf3+ {[%clk 0:02:00]} 21. Bxf3 {[%clk 0:01:43]}  Nd6 {[%clk 0:02:01]} 22. Nd5 {[%clk 0:01:42]}  Bxb2 {[%clk 0:01:58]} 23. Ra2 {[%clk 0:01:40]}  Bf6 {[%clk 0:01:05]} 24. Nxc7 {[%clk 0:01:26]}  Rfd8 {[%clk 0:00:50]} 25. Nd5 {[%clk 0:01:26]}  Be6 {[%clk 0:00:11]} 26. Nxf6+ {[%clk 0:01:20]}  Kg7 {[%clk 0:00:09]} 27. Nd5 {[%clk 0:00:57]}  Rb7 {[%clk 0:00:03]} 28. Rad2 {[%clk 0:00:55]}  Ra7 {[%clk 0:00:01]} 29. Be5+ {[%clk 0:00:40]}  f6 {[%clk 0:00:01]} 30. Bb2 {[%clk 0:00:39]} 1-0


[Site "https://www.chess.com"]

[Event "Titled Tuesday Blitz May 30 Late 2023"]
[White "Osmonbekov, Talaibek"]
[Black "Mickiewicz, Piotr"]
[WhiteFideId "2017253"]
[BlackFideId "1114891"]
[WhiteElo "2135"]
[BlackElo "2246"]
[Result "1-0"]
[Round "07"]
[TimeControl "180+2"]
[Date "2023.05.31"]
[WhiteClock "0:00:59"]
[BlackClock "0:00:27"]

1. d4 {[%clk 0:03:00]}  Nf6 {[%clk 0:02:57]} 2. Bf4 {[%clk 0:03:01]}  d5 {[%clk 0:02:54]} 3. Nc3 {[%clk 0:03:01]}  a6 {[%clk 0:02:53]} 4. e3 {[%clk 0:03:02]}  c5 {[%clk 0:02:53]} 5. Nf3 {[%clk 0:03:03]}  Nc6 {[%clk 0:02:52]} 6. Ne5 {[%clk 0:03:02]}  Bf5 {[%clk 0:02:24]} 7. Bd3 {[%clk 0:02:56]}  Bxd3 {[%clk 0:02:21]} 8. Qxd3 {[%clk 0:02:56]}  Rc8 {[%clk 0:02:19]} 9. O-O {[%clk 0:02:53]}  e6 {[%clk 0:02:19]} 10. f3 {[%clk 0:02:43]}  cxd4 {[%clk 0:02:17]} 11. exd4 {[%clk 0:02:42]}  Nxd4 {[%clk 0:02:12]} 12. Rfe1 {[%clk 0:02:26]}  Be7 {[%clk 0:01:59]} 13. Kh1 {[%clk 0:02:18]}  Nc6 {[%clk 0:01:56]} 14. Rad1 {[%clk 0:02:10]}  O-O {[%clk 0:01:55]} 15. Nxc6 {[%clk 0:02:08]}  Rxc6 {[%clk 0:01:55]} 16. Ne2 {[%clk 0:02:08]}  Qc8 {[%clk 0:01:48]} 17. c3 {[%clk 0:02:01]}  Rc4 {[%clk 0:01:46]} 18. Nd4 {[%clk 0:01:55]}  Rd8 {[%clk 0:01:37]} 19. Be5 {[%clk 0:01:50]}  Nd7 {[%clk 0:01:33]} 20. f4 {[%clk 0:01:40]}  Bf6 {[%clk 0:01:08]} 21. Qg3 {[%clk 0:01:35]}  b5 {[%clk 0:00:50]} 22. a3 {[%clk 0:01:31]}  Qb7 {[%clk 0:00:48]} 23. Bxf6 {[%clk 0:01:14]}  Nxf6 {[%clk 0:00:49]} 24. f5 {[%clk 0:01:13]}  Ne4 {[%clk 0:00:42]} 25. Rxe4 {[%clk 0:01:13]}  dxe4 {[%clk 0:00:41]} 26. f6 {[%clk 0:01:14]}  g6 {[%clk 0:00:38]} 27. Qg5 {[%clk 0:01:14]}  Kh8 {[%clk 0:00:32]} 28. Qh6 {[%clk 0:01:08]}  Rg8 {[%clk 0:00:32]} 29. Re1 {[%clk 0:01:03]}  Qd5 {[%clk 0:00:27]} 30. Re3 {[%clk 0:01:02]}  Rxd4 {[%clk 0:00:27]} 31. cxd4 {[%clk 0:00:58]}  Qxd4 {[%clk 0:00:28]} 32. Qxh7+ {[%clk 0:00:58]}  Kxh7 {[%clk 0:00:27]} 33. Rh3# {[%clk 0:00:59]} 1-0


[Site "https://www.chess.com"]

[Event "Titled Tuesday Blitz May 30 Late 2023"]
[White "zano2023"]
[Black "Ansh M Shah"]
[BlackFideId "25033379"]
[WhiteElo "2191"]
[BlackElo "2084"]
[Result "0-1"]
[Round "07"]
[TimeControl "180+2"]
[Date "2023.05.31"]
[WhiteClock "0:01:11"]
[BlackClock "0:01:43"]

1. d4 {[%clk 0:03:00]}  Nf6 {[%clk 0:02:59]} 2. Nd2 {[%clk 0:02:59]}  e6 {[%clk 0:03:00]} 3. Ngf3 {[%clk 0:02:58]}  d5 {[%clk 0:03:00]} 4. e3 {[%clk 0:02:58]}  c5 {[%clk 0:03:01]} 5. c3 {[%clk 0:02:58]}  Nc6 {[%clk 0:03:02]} 6. Bd3 {[%clk 0:02:56]}  Bd6 {[%clk 0:03:02]} 7. O-O {[%clk 0:02:56]}  e5 {[%clk 0:03:03]} 8. dxc5 {[%clk 0:02:52]}  Bxc5 {[%clk 0:03:02]} 9. e4 {[%clk 0:02:51]}  O-O {[%clk 0:02:52]} 10. Qe2 {[%clk 0:02:51]}  d4 {[%clk 0:02:45]} 11. cxd4 {[%clk 0:02:47]}  Nxd4 {[%clk 0:02:45]} 12. Nxd4 {[%clk 0:02:46]}  Bxd4 {[%clk 0:02:46]} 13. Nf3 {[%clk 0:02:44]}  Bg4 {[%clk 0:02:47]} 14. h3 {[%clk 0:02:44]}  Bxf3 {[%clk 0:02:46]} 15. Qxf3 {[%clk 0:02:44]}  Qb6 {[%clk 0:02:45]} 16. Rb1 {[%clk 0:02:40]}  Rac8 {[%clk 0:02:43]} 17. Bg5 {[%clk 0:02:39]}  Nd7 {[%clk 0:02:37]} 18. Be7 {[%clk 0:02:24]}  Rfe8 {[%clk 0:02:36]} 19. Ba3 {[%clk 0:02:23]}  Nf6 {[%clk 0:02:31]} 20. b3 {[%clk 0:02:20]}  Red8 {[%clk 0:02:25]} 21. Be7 {[%clk 0:02:19]}  Rd7 {[%clk 0:02:25]} 22. Bxf6 {[%clk 0:02:18]}  Qxf6 {[%clk 0:02:26]} 23. Qxf6 {[%clk 0:02:17]}  gxf6 {[%clk 0:02:27]} 24. Bc4 {[%clk 0:02:13]}  a6 {[%clk 0:02:22]} 25. Bd5 {[%clk 0:02:10]}  Rc2 {[%clk 0:02:21]} 26. a4 {[%clk 0:02:04]}  Rdc7 {[%clk 0:02:21]} 27. Bc4 {[%clk 0:02:02]}  Rc5 {[%clk 0:02:16]} 28. Rbc1 {[%clk 0:01:59]}  Bxf2+ {[%clk 0:02:16]} 29. Kh2 {[%clk 0:01:35]}  Rxc1 {[%clk 0:02:15]} 30. Rxc1 {[%clk 0:01:35]}  b5 {[%clk 0:02:15]} 31. axb5 {[%clk 0:01:32]}  axb5 {[%clk 0:02:15]} 32. Rf1 {[%clk 0:01:31]}  bxc4 {[%clk 0:01:56]} 33. Rxf2 {[%clk 0:01:28]}  cxb3 {[%clk 0:01:54]} 34. Rxf6 {[%clk 0:01:26]}  Rb5 {[%clk 0:01:50]} 35. Rf1 {[%clk 0:01:26]}  b2 {[%clk 0:01:50]} 36. Rb1 {[%clk 0:01:26]}  Rb3 {[%clk 0:01:49]} 37. h4 {[%clk 0:01:24]}  h5 {[%clk 0:01:48]} 38. Kg1 {[%clk 0:01:21]}  Kf8 {[%clk 0:01:47]} 39. Kf2 {[%clk 0:01:21]}  Ke7 {[%clk 0:01:48]} 40. Ke2 {[%clk 0:01:21]}  Kd6 {[%clk 0:01:48]} 41. Kd2 {[%clk 0:01:22]}  Kc5 {[%clk 0:01:49]} 42. Kc2 {[%clk 0:01:22]}  Rb4 {[%clk 0:01:49]} 43. Rxb2 {[%clk 0:01:21]}  Rxb2+ {[%clk 0:01:49]} 44. Kxb2 {[%clk 0:01:21]}  Kd4 {[%clk 0:01:50]} 45. Kc2 {[%clk 0:01:21]}  Kxe4 {[%clk 0:01:51]} 46. Kd2 {[%clk 0:01:22]}  Kf4 {[%clk 0:01:52]} 47. Ke2 {[%clk 0:01:22]}  Kg3 {[%clk 0:01:52]} 48. Ke3 {[%clk 0:01:20]}  Kxg2 {[%clk 0:01:53]} 49. Ke4 {[%clk 0:01:20]}  Kg3 {[%clk 0:01:53]} 50. Kxe5 {[%clk 0:01:20]}  Kxh4 {[%clk 0:01:54]} 51. Kf4 {[%clk 0:01:21]}  Kh3 {[%clk 0:01:51]} 52. Kf3 {[%clk 0:01:21]}  f5 {[%clk 0:01:50]} 53. Kf4 {[%clk 0:01:17]}  Kg2 {[%clk 0:01:43]} 54. Kg5 {[%clk 0:01:12]}  Kg3 {[%clk 0:01:43]} 55. Kxf5 {[%clk 0:01:11]}  h4 {[%clk 0:01:43]} 0-1


[Site "https://www.chess.com"]

[Event "Titled Tuesday Blitz May 30 Late 2023"]
[White "Carrasco Miranda, Andres"]
[Black "Brown, Raehanna"]
[WhiteFideId "3405990"]
[BlackFideId "7402740"]
[WhiteElo "2183"]
[BlackElo "1655"]
[Result "0-1"]
[Round "07"]
[TimeControl "180+2"]
[Date "2023.05.31"]
[WhiteClock "0:00:53"]
[BlackClock "0:01:05"]

1. d4 {[%clk 0:02:58]}  Nf6 {[%clk 0:02:58]} 2. c4 {[%clk 0:02:56]}  g6 {[%clk 0:02:58]} 3. g3 {[%clk 0:02:56]}  Bg7 {[%clk 0:02:59]} 4. Bg2 {[%clk 0:02:57]}  O-O {[%clk 0:02:59]} 5. Nc3 {[%clk 0:02:57]}  d6 {[%clk 0:03:00]} 6. Nf3 {[%clk 0:02:57]}  Nbd7 {[%clk 0:02:53]} 7. O-O {[%clk 0:02:56]}  c5 {[%clk 0:02:53]} 8. d5 {[%clk 0:02:53]}  a6 {[%clk 0:02:53]} 9. a4 {[%clk 0:02:52]}  Qc7 {[%clk 0:02:48]} 10. e4 {[%clk 0:02:51]}  b6 {[%clk 0:02:48]} 11. Ne1 {[%clk 0:02:49]}  e6 {[%clk 0:02:47]} 12. Nd3 {[%clk 0:02:48]}  exd5 {[%clk 0:02:47]} 13. exd5 {[%clk 0:02:49]}  Re8 {[%clk 0:02:42]} 14. Bf4 {[%clk 0:02:47]}  Ne5 {[%clk 0:02:38]} 15. Nxe5 {[%clk 0:02:43]}  dxe5 {[%clk 0:02:38]} 16. Bg5 {[%clk 0:02:43]}  Bg4 {[%clk 0:02:13]} 17. Qd2 {[%clk 0:02:35]}  Rad8 {[%clk 0:02:04]} 18. Rfe1 {[%clk 0:02:15]}  Bf5 {[%clk 0:01:58]} 19. Rad1 {[%clk 0:02:09]}  Qd6 {[%clk 0:01:44]} 20. b3 {[%clk 0:01:49]}  e4 {[%clk 0:01:36]} 21. Bf4 {[%clk 0:01:43]}  Qd7 {[%clk 0:01:31]} 22. a5 {[%clk 0:01:37]}  bxa5 {[%clk 0:01:20]} 23. Na4 {[%clk 0:01:33]}  Bf8 {[%clk 0:01:19]} 24. Bg5 {[%clk 0:01:32]}  Ng4 {[%clk 0:01:15]} 25. Bxd8 {[%clk 0:01:31]}  Rxd8 {[%clk 0:01:15]} 26. h3 {[%clk 0:01:27]}  Ne5 {[%clk 0:01:14]} 27. g4 {[%clk 0:01:27]}  Bxg4 {[%clk 0:01:13]} 28. hxg4 {[%clk 0:01:27]}  Qxg4 {[%clk 0:01:14]} 29. Kf1 {[%clk 0:01:23]}  Nf3 {[%clk 0:01:09]} 30. Bxf3 {[%clk 0:01:23]}  exf3 {[%clk 0:01:09]} 31. Re4 {[%clk 0:00:57]}  Qg2+ {[%clk 0:01:05]} 32. Ke1 {[%clk 0:00:53]}  Qg1# {[%clk 0:01:05]} 0-1


[Site "https://www.chess.com"]

[Event "Titled Tuesday Blitz May 30 Late 2023"]
[White "Talbi, Chafik"]
[Black "Fuentes Godoy, Lilia Ivonne"]
[WhiteFideId "7903715"]
[BlackFideId "5104130"]
[WhiteElo "2186"]
[BlackElo "2096"]
[Result "1-0"]
[Round "07"]
[TimeControl "180+2"]
[Date "2023.05.31"]
[WhiteClock "0:01:32"]
[BlackClock "0:00:03"]

1. e4 {[%clk 0:02:59]}  c5 {[%clk 0:02:54]} 2. Nf3 {[%clk 0:02:58]}  Nc6 {[%clk 0:02:54]} 3. c3 {[%clk 0:02:57]}  g6 {[%clk 0:02:50]} 4. d4 {[%clk 0:02:57]}  cxd4 {[%clk 0:02:51]} 5. cxd4 {[%clk 0:02:57]}  Bg7 {[%clk 0:02:51]} 6. d5 {[%clk 0:02:54]}  Ne5 {[%clk 0:02:49]} 7. Nxe5 {[%clk 0:02:54]}  Bxe5 {[%clk 0:02:50]} 8. Nc3 {[%clk 0:02:54]}  d6 {[%clk 0:02:49]} 9. Be2 {[%clk 0:02:46]}  Bd7 {[%clk 0:02:47]} 10. O-O {[%clk 0:02:46]}  Rc8 {[%clk 0:02:45]} 11. f4 {[%clk 0:02:40]}  Qb6+ {[%clk 0:02:37]} 12. Kh1 {[%clk 0:02:39]}  Bxc3 {[%clk 0:02:25]} 13. bxc3 {[%clk 0:02:39]}  Rxc3 {[%clk 0:02:26]} 14. Bd2 {[%clk 0:02:29]}  Rc8 {[%clk 0:02:23]} 15. Rb1 {[%clk 0:02:29]}  Qc7 {[%clk 0:02:21]} 16. Qb3 {[%clk 0:02:21]}  Nf6 {[%clk 0:02:18]} 17. Rfc1 {[%clk 0:02:16]}  Qb8 {[%clk 0:01:26]} 18. Qxb7 {[%clk 0:02:15]}  Qxb7 {[%clk 0:01:09]} 19. Rxb7 {[%clk 0:02:15]}  O-O {[%clk 0:00:42]} 20. Bf3 {[%clk 0:02:04]}  Rxc1+ {[%clk 0:00:39]} 21. Bxc1 {[%clk 0:02:04]}  Rc8 {[%clk 0:00:38]} 22. Bb2 {[%clk 0:02:04]}  Bg4 {[%clk 0:00:33]} 23. h3 {[%clk 0:01:59]}  Bxf3 {[%clk 0:00:27]} 24. gxf3 {[%clk 0:01:58]}  Nh5 {[%clk 0:00:27]} 25. Rxe7 {[%clk 0:01:48]}  Nxf4 {[%clk 0:00:27]} 26. Rxa7 {[%clk 0:01:48]}  Nxh3 {[%clk 0:00:19]} 27. a4 {[%clk 0:01:46]}  Nf2+ {[%clk 0:00:15]} 28. Kg1 {[%clk 0:01:43]}  Nd3 {[%clk 0:00:16]} 29. Bf6 {[%clk 0:01:42]}  Rc1+ {[%clk 0:00:10]} 30. Kg2 {[%clk 0:01:39]}  Rc2+ {[%clk 0:00:08]} 31. Kg3 {[%clk 0:01:37]}  Rc8 {[%clk 0:00:06]} 32. a5 {[%clk 0:01:37]}  Nc5 {[%clk 0:00:05]} 33. a6 {[%clk 0:01:35]}  h5 {[%clk 0:00:03]} 34. Be7 {[%clk 0:01:32]} 1-0


[Site "https://www.chess.com"]

[Event "Titled Tuesday Blitz May 30 Late 2023"]
[White "gao6969"]
[Black "Djordjevic, Dejan N"]
[BlackFideId "913316"]
[WhiteElo "2378"]
[BlackElo "2261"]
[Result "1-0"]
[Round "07"]
[TimeControl "180+2"]
[Date "2023.05.31"]
[WhiteClock "0:00:08"]
[BlackClock "0:00:01"]

1. a3 {[%clk 0:03:00]}  Nf6 {[%clk 0:02:58]} 2. b4 {[%clk 0:02:59]}  d5 {[%clk 0:02:58]} 3. Bb2 {[%clk 0:02:59]}  Bf5 {[%clk 0:02:58]} 4. Nf3 {[%clk 0:02:58]}  e6 {[%clk 0:02:58]} 5. e3 {[%clk 0:02:58]}  h6 {[%clk 0:02:58]} 6. g3 {[%clk 0:02:55]}  Nbd7 {[%clk 0:02:58]} 7. Bg2 {[%clk 0:02:55]}  a5 {[%clk 0:02:56]} 8. b5 {[%clk 0:02:54]}  c6 {[%clk 0:02:56]} 9. a4 {[%clk 0:02:53]}  c5 {[%clk 0:02:54]} 10. O-O {[%clk 0:02:52]}  Be7 {[%clk 0:02:54]} 11. Ne5 {[%clk 0:02:52]}  Nxe5 {[%clk 0:02:47]} 12. Bxe5 {[%clk 0:02:53]}  O-O {[%clk 0:02:47]} 13. c4 {[%clk 0:02:53]}  Nd7 {[%clk 0:02:45]} 14. Bb2 {[%clk 0:02:50]}  Nb6 {[%clk 0:02:45]} 15. cxd5 {[%clk 0:02:24]}  exd5 {[%clk 0:02:44]} 16. d3 {[%clk 0:02:23]}  Qd7 {[%clk 0:02:39]} 17. Re1 {[%clk 0:02:20]}  Be6 {[%clk 0:02:35]} 18. Nd2 {[%clk 0:02:19]}  Rfd8 {[%clk 0:02:33]} 19. Qc2 {[%clk 0:02:18]}  Bf8 {[%clk 0:02:29]} 20. Red1 {[%clk 0:01:52]}  Rac8 {[%clk 0:02:09]} 21. e4 {[%clk 0:01:51]}  d4 {[%clk 0:01:54]} 22. Nc4 {[%clk 0:01:38]}  Nxc4 {[%clk 0:01:51]} 23. dxc4 {[%clk 0:01:39]}  b6 {[%clk 0:01:45]} 24. Bf1 {[%clk 0:01:37]}  f5 {[%clk 0:01:43]} 25. Bd3 {[%clk 0:01:36]}  fxe4 {[%clk 0:01:40]} 26. Bxe4 {[%clk 0:01:35]}  Be7 {[%clk 0:01:38]} 27. Bc1 {[%clk 0:01:33]}  Bf6 {[%clk 0:01:37]} 28. Ra3 {[%clk 0:01:29]}  Qf7 {[%clk 0:01:32]} 29. Bg6 {[%clk 0:01:26]}  Qd7 {[%clk 0:01:28]} 30. Bf4 {[%clk 0:01:25]}  Re8 {[%clk 0:01:27]} 31. Bxe8 {[%clk 0:01:24]}  Rxe8 {[%clk 0:01:26]} 32. Re1 {[%clk 0:01:17]}  Rc8 {[%clk 0:01:23]} 33. Be5 {[%clk 0:01:14]}  Bf5 {[%clk 0:01:12]} 34. Qd2 {[%clk 0:01:09]}  Be7 {[%clk 0:01:08]} 35. Qf4 {[%clk 0:01:07]}  Bf8 {[%clk 0:01:07]} 36. Rf3 {[%clk 0:01:04]}  Be6 {[%clk 0:01:06]} 37. Rc1 {[%clk 0:00:51]}  Bg4 {[%clk 0:00:43]} 38. Rd3 {[%clk 0:00:48]}  Be6 {[%clk 0:00:42]} 39. h4 {[%clk 0:00:45]}  Bf5 {[%clk 0:00:34]} 40. Rd2 {[%clk 0:00:44]}  Re8 {[%clk 0:00:31]} 41. Bc7 {[%clk 0:00:42]}  Re6 {[%clk 0:00:29]} 42. Kh2 {[%clk 0:00:34]}  Bg6 {[%clk 0:00:29]} 43. Bb8 {[%clk 0:00:24]}  Bf7 {[%clk 0:00:16]} 44. Rdd1 {[%clk 0:00:20]}  Qe8 {[%clk 0:00:15]} 45. Bc7 {[%clk 0:00:17]}  Qd7 {[%clk 0:00:15]} 46. Kg1 {[%clk 0:00:12]}  Rf6 {[%clk 0:00:07]} 47. Qe5 {[%clk 0:00:10]}  Rf5 {[%clk 0:00:08]} 48. Qe4 {[%clk 0:00:06]}  Bg6 {[%clk 0:00:07]} 49. Bf4 {[%clk 0:00:05]}  Kh7 {[%clk 0:00:06]} 50. Qg2 {[%clk 0:00:04]}  Bf7 {[%clk 0:00:06]} 51. Re1 {[%clk 0:00:05]}  Rf6 {[%clk 0:00:05]} 52. Re5 {[%clk 0:00:05]}  Rg6 {[%clk 0:00:05]} 53. h5 {[%clk 0:00:06]}  Rf6 {[%clk 0:00:05]} 54. Qe4+ {[%clk 0:00:07]}  Kg8 {[%clk 0:00:04]} 55. Re1 {[%clk 0:00:07]}  Bd6 {[%clk 0:00:04]} 56. Re8+ {[%clk 0:00:07]}  Bxe8 {[%clk 0:00:04]} 57. Qxe8+ {[%clk 0:00:08]}  Qxe8 {[%clk 0:00:04]} 58. Rxe8+ {[%clk 0:00:09]}  Bf8 {[%clk 0:00:05]} 59. Be5 {[%clk 0:00:09]}  Rf7 {[%clk 0:00:04]} 60. Rd8 {[%clk 0:00:09]}  g5 {[%clk 0:00:02]} 61. hxg6 {[%clk 0:00:08]}  Rf5 {[%clk 0:00:02]} 62. Bd6 {[%clk 0:00:08]}  Kg7 {[%clk 0:00:02]} 63. Rd7+ {[%clk 0:00:08]}  Kxg6 {[%clk 0:00:02]} 64. Bf4 {[%clk 0:00:08]}  Rf6 {[%clk 0:00:01]} 65. Rd8 {[%clk 0:00:08]}  Be7 {[%clk 0:00:01]} 66. Rd5 {[%clk 0:00:08]} 1-0


[Site "https://www.chess.com"]

[Event "Titled Tuesday Blitz May 30 Late 2023"]
[White "Smiechu"]
[Black "Silva Rosas, Natalia"]
[BlackFideId "3000575"]
[WhiteElo "2346"]
[BlackElo "1651"]
[Result "1-0"]
[Round "07"]
[TimeControl "180+2"]
[Date "2023.05.31"]
[WhiteClock "0:00:30"]
[BlackClock "0:00:01"]

1. e4 {[%clk 0:03:00]}  c5 {[%clk 0:02:59]} 2. Nf3 {[%clk 0:03:01]}  e6 {[%clk 0:02:58]} 3. d4 {[%clk 0:03:01]}  cxd4 {[%clk 0:02:55]} 4. Nxd4 {[%clk 0:03:02]}  a6 {[%clk 0:02:55]} 5. Bd3 {[%clk 0:03:01]}  Qc7 {[%clk 0:02:53]} 6. Nc3 {[%clk 0:03:01]}  Nf6 {[%clk 0:02:53]} 7. Be3 {[%clk 0:03:01]}  Bb4 {[%clk 0:02:52]} 8. Qd2 {[%clk 0:02:44]}  Nc6 {[%clk 0:02:50]} 9. Nxc6 {[%clk 0:02:41]}  bxc6 {[%clk 0:02:49]} 10. O-O {[%clk 0:02:41]}  Bb7 {[%clk 0:02:45]} 11. Nd5 {[%clk 0:02:29]}  Nxd5 {[%clk 0:02:39]} 12. c3 {[%clk 0:02:29]}  Nxe3 {[%clk 0:02:35]} 13. Qxe3 {[%clk 0:02:23]}  Bd6 {[%clk 0:02:32]} 14. f4 {[%clk 0:02:22]}  Be7 {[%clk 0:02:28]} 15. Qg3 {[%clk 0:02:18]}  O-O {[%clk 0:02:20]} 16. e5 {[%clk 0:02:17]}  g6 {[%clk 0:02:15]} 17. h4 {[%clk 0:02:06]}  Kh8 {[%clk 0:01:50]} 18. Be2 {[%clk 0:02:03]}  Qb6+ {[%clk 0:01:45]} 19. Kh1 {[%clk 0:02:01]}  Qxb2 {[%clk 0:01:39]} 20. Bc4 {[%clk 0:01:24]}  Qa3 {[%clk 0:01:08]} 21. Rab1 {[%clk 0:01:18]}  Rab8 {[%clk 0:01:06]} 22. Qd3 {[%clk 0:01:14]}  c5 {[%clk 0:00:58]} 23. Rb3 {[%clk 0:01:13]}  Bxg2+ {[%clk 0:00:37]} 24. Kxg2 {[%clk 0:01:09]}  Rxb3 {[%clk 0:00:33]} 25. Bxb3 {[%clk 0:01:08]}  Qb2+ {[%clk 0:00:27]} 26. Rf2 {[%clk 0:01:08]}  Qa3 {[%clk 0:00:25]} 27. Qxd7 {[%clk 0:01:01]}  Bxh4 {[%clk 0:00:24]} 28. Rc2 {[%clk 0:00:58]}  c4 {[%clk 0:00:22]} 29. Bxc4 {[%clk 0:00:54]}  Qc5 {[%clk 0:00:18]} 30. Qd3 {[%clk 0:00:47]}  Qc6+ {[%clk 0:00:16]} 31. Kh3 {[%clk 0:00:44]}  Be7 {[%clk 0:00:08]} 32. Bxa6 {[%clk 0:00:42]}  Qh1+ {[%clk 0:00:06]} 33. Rh2 {[%clk 0:00:41]}  Qa8 {[%clk 0:00:02]} 34. Kg4 {[%clk 0:00:36]}  Qd8 {[%clk 0:00:01]} 35. Rd2 {[%clk 0:00:30]} 1-0


[Site "https://www.chess.com"]

[Event "Titled Tuesday Blitz May 30 Late 2023"]
[White "Prieto Aranguren, Alain"]
[Black "Alexikov, Alexander"]
[WhiteFideId "2268906"]
[BlackFideId "14103958"]
[WhiteElo "2209"]
[BlackElo "2186"]
[Result "1-0"]
[Round "07"]
[TimeControl "180+2"]
[Date "2023.05.31"]
[WhiteClock "0:00:03"]
[BlackClock "0:00:01"]

1. e4 {[%clk 0:02:53]}  c5 {[%clk 0:02:59]} 2. Bc4 {[%clk 0:02:51]}  e6 {[%clk 0:02:58]} 3. Qf3 {[%clk 0:02:50]}  Nc6 {[%clk 0:02:56]} 4. d3 {[%clk 0:02:49]}  Nf6 {[%clk 0:02:53]} 5. Nc3 {[%clk 0:02:46]}  a6 {[%clk 0:02:52]} 6. Qg3 {[%clk 0:02:41]}  d5 {[%clk 0:02:43]} 7. exd5 {[%clk 0:02:40]}  exd5 {[%clk 0:02:43]} 8. Bb3 {[%clk 0:02:40]}  b5 {[%clk 0:02:41]} 9. a4 {[%clk 0:02:34]}  b4 {[%clk 0:02:37]} 10. Nce2 {[%clk 0:02:32]}  Ra7 {[%clk 0:02:21]} 11. Nf3 {[%clk 0:02:30]}  Re7 {[%clk 0:02:19]} 12. Be3 {[%clk 0:02:24]}  g6 {[%clk 0:02:06]} 13. O-O {[%clk 0:01:58]}  d4 {[%clk 0:02:04]} 14. Bg5 {[%clk 0:01:35]}  Rxe2 {[%clk 0:02:02]} 15. Rae1 {[%clk 0:01:35]}  Re6 {[%clk 0:01:51]} 16. Bxe6 {[%clk 0:01:27]}  Bxe6 {[%clk 0:01:46]} 17. Nd2 {[%clk 0:00:57]}  Be7 {[%clk 0:01:40]} 18. Bh6 {[%clk 0:00:56]}  Bf8 {[%clk 0:01:31]} 19. Bg5 {[%clk 0:00:55]}  h6 {[%clk 0:01:27]} 20. Bxf6 {[%clk 0:00:40]}  Qxf6 {[%clk 0:01:26]} 21. Qc7 {[%clk 0:00:41]}  Nd8 {[%clk 0:01:19]} 22. Ne4 {[%clk 0:00:19]}  Qe7 {[%clk 0:01:18]} 23. Qb8 {[%clk 0:00:18]}  Qb7 {[%clk 0:00:58]} 24. Qe5 {[%clk 0:00:17]}  Rg8 {[%clk 0:00:31]} 25. Nf6+ {[%clk 0:00:16]}  Ke7 {[%clk 0:00:31]} 26. Nxg8+ {[%clk 0:00:16]}  Kd7 {[%clk 0:00:31]} 27. Nf6+ {[%clk 0:00:16]}  Kc8 {[%clk 0:00:31]} 28. Ne8 {[%clk 0:00:15]}  Kd7 {[%clk 0:00:24]} 29. Nf6+ {[%clk 0:00:14]}  Kc8 {[%clk 0:00:24]} 30. Ne4 {[%clk 0:00:15]}  Qc7 {[%clk 0:00:20]} 31. Qxc7+ {[%clk 0:00:14]}  Kxc7 {[%clk 0:00:19]} 32. f4 {[%clk 0:00:13]}  f5 {[%clk 0:00:16]} 33. Nd2 {[%clk 0:00:11]}  Be7 {[%clk 0:00:11]} 34. Nc4 {[%clk 0:00:11]}  Bf6 {[%clk 0:00:09]} 35. Ne5 {[%clk 0:00:11]}  g5 {[%clk 0:00:08]} 36. fxg5 {[%clk 0:00:10]}  hxg5 {[%clk 0:00:08]} 37. Nf3 {[%clk 0:00:09]}  g4 {[%clk 0:00:07]} 38. Ne5 {[%clk 0:00:10]}  Bg5 {[%clk 0:00:07]} 39. Ng6 {[%clk 0:00:08]}  Be3+ {[%clk 0:00:06]} 40. Kh1 {[%clk 0:00:08]}  Nf7 {[%clk 0:00:05]} 41. Nf4 {[%clk 0:00:08]}  Bd7 {[%clk 0:00:04]} 42. c3 {[%clk 0:00:06]}  bxc3 {[%clk 0:00:02]} 43. bxc3 {[%clk 0:00:06]}  Kd6 {[%clk 0:00:02]} 44. cxd4 {[%clk 0:00:06]}  cxd4 {[%clk 0:00:03]} 45. Nh5 {[%clk 0:00:04]}  Ne5 {[%clk 0:00:01]} 46. Nf6 {[%clk 0:00:04]}  Bxa4 {[%clk 0:00:01]} 47. Rxf5 {[%clk 0:00:03]} 1-0


[Site "https://www.chess.com"]

[Event "Titled Tuesday Blitz May 30 Late 2023"]
[White "Hartikainen, Jarmo"]
[Black "dodoucb"]
[WhiteFideId "503134"]
[WhiteElo "2104"]
[BlackElo "2326"]
[Result "1-0"]
[Round "07"]
[TimeControl "180+2"]
[Date "2023.05.31"]
[WhiteClock "0:00:28"]
[BlackClock "0:00:25"]

1. e4 {[%clk 0:03:00]}  c6 {[%clk 0:02:54]} 2. d4 {[%clk 0:03:00]}  d5 {[%clk 0:02:54]} 3. Nc3 {[%clk 0:03:00]}  dxe4 {[%clk 0:02:52]} 4. Nxe4 {[%clk 0:03:01]}  Bf5 {[%clk 0:02:52]} 5. Ng3 {[%clk 0:03:01]}  Bg6 {[%clk 0:02:52]} 6. h4 {[%clk 0:03:01]}  h6 {[%clk 0:02:49]} 7. Bc4 {[%clk 0:03:01]}  e6 {[%clk 0:02:48]} 8. N1e2 {[%clk 0:03:00]}  Nf6 {[%clk 0:02:28]} 9. Nf4 {[%clk 0:02:58]}  Bh7 {[%clk 0:02:27]} 10. O-O {[%clk 0:02:58]}  Bd6 {[%clk 0:02:22]} 11. Nxe6 {[%clk 0:02:46]}  fxe6 {[%clk 0:02:19]} 12. Bxe6 {[%clk 0:02:46]}  Qc7 {[%clk 0:01:47]} 13. Re1 {[%clk 0:02:34]}  Kd8 {[%clk 0:01:41]} 14. Qf3 {[%clk 0:02:28]}  Nbd7 {[%clk 0:01:33]} 15. c4 {[%clk 0:02:21]}  Rf8 {[%clk 0:01:25]} 16. c5 {[%clk 0:02:04]}  Bxg3 {[%clk 0:01:23]} 17. fxg3 {[%clk 0:01:54]}  Nd5 {[%clk 0:01:06]} 18. Qa3 {[%clk 0:01:19]}  N7f6 {[%clk 0:01:02]} 19. Bd2 {[%clk 0:01:14]}  Re8 {[%clk 0:00:28]} 20. Bxd5 {[%clk 0:00:56]}  Nxd5 {[%clk 0:00:26]} 21. Ba5 {[%clk 0:00:46]}  b6 {[%clk 0:00:26]} 22. Rxe8+ {[%clk 0:00:29]}  Kxe8 {[%clk 0:00:25]} 23. Re1+ {[%clk 0:00:29]}  Kf8 {[%clk 0:00:25]} 24. cxb6+ {[%clk 0:00:28]} 1-0


[Site "https://www.chess.com"]